fUSD/lending_fUSD_20250117
["ID","MTS","AMOUNT","RATE_DAILY","PERIOD"]
[349275659,1737093046118,-33545.41335147,0.00025,30]
[349275660,1737093046130,-59857.728561,0.00025,30]
[349275661,1737093046142,-5088.73168831,0.00025,30]
[349275662,1737093046340,-13698.25061021,0.00025,30]
[349275663,1737093046351,-19550.18644913,0.00025,30]
[349275664,1737093046362,-546.006,0.00025,30]
[349275665,1737093046471,-1158.46590697,0.00025,30]
[349275667,1737093046698,-1410234.1542916,0.00025,30]
[349275676,1737093770547,164.72,0.00010137,2]
[349275680,1737094036208,-1647.74393398,0.000226,2]
[349275681,1737094146137,-547.55,0.00021619,2]
[349275682,1737094146159,-138.45,0.000226,2]
[349275685,1737094232385,-221.0,0.000232,30]
[349275686,1737094232395,-363.97,0.00023451,2]
[349275687,1737094232405,-161.73,0.0002347,2]
[349275688,1737094232414,-300.61939698,0.00023517,2]
[349275689,1737094232424,-1852.42,0.00023576,2]
[349275690,1737094232434,-943.89,0.00023617,2]
[349275691,1737094232445,-250.0,0.00023657,2]
[349275692,1737094232455,-300.61939696,0.00023778,2]
[349275693,1737094232464,-300.0,0.00023883,2]
[349275694,1737094232474,-547.55,0.00023883,2]
[349275695,1737094232484,-20923.35,0.00023884,2]
[349275696,1737094232493,-2000.0,0.00023886,120]
[349275697,1737094232503,-250.0,0.00023921,2]
[349275698,1737094232513,-250.0,0.00023922,2]
[349275699,1737094232522,-196.78,0.00023939,2]
[349275700,1737094232531,-200.0,0.00024001,2]
[349275701,1737094232541,-334.0,0.00024014,2]
[349275702,1737094232550,-39874.0,0.00024015,2]
[349275703,1737094232559,-300.61939696,0.00024038,2]
[349275704,1737094232568,-980.56,0.00024138,2]
[349275705,1737094232577,-980.77,0.00024138,2]
[349275706,1737094232586,-1960.37,0.00024138,2]
[349275707,1737094232594,-980.56,0.00024138,2]
[349275708,1737094232602,-998.27,0.00024138,2]
[349275709,1737094232611,-1960.62,0.00024138,2]
[349275710,1737094232619,-578.5,0.00024138,2]
[349275711,1737094232628,-1953.91,0.00024138,2]
[349275712,1737094232637,-980.77,0.00024138,2]
[349275713,1737094232645,-164.72,0.00024231,2]
[349275714,1737094232653,-416.1,0.0002435,2]
[349275715,1737094232662,-187.58,0.00024432,2]
[349275716,1737094232671,-597.9529758,0.000245,2]
[349275717,1737094232680,-1904.981,0.00024501,7]
[349275718,1737094232689,-157.825,0.00024501,7]
[349275719,1737094232698,-641.54845282,0.00024509,2]
[349275720,1737094232707,-300.0,0.000247,2]
[349275721,1737094232716,-8779.56851447,0.000247,2]
[349275722,1737094232728,-644.40393473,0.000247,2]
[349275723,1737094232739,-6557.28044361,0.000247,2]
[349275724,1737094232751,-4073.08280719,0.000247,2]
[349275725,1737094232761,-264.17054816,0.000247,2]
[349275726,1737094232770,-202.06134771,0.00024749,2]
[349275727,1737094232779,-1041.09172,0.0002475,2]
[349275729,1737094232789,-604.42085418,0.00024773,2]
[349275730,1737094232798,-202.8884073,0.00024785,2]
[349275732,1737094232807,-1000.7232014,0.000248,2]
[349275734,1737094232819,-9703.50043374,0.000248,2]
[349275737,1737094232830,-19549.43902376,0.000248,2]
[349275739,1737094232841,-752.76793986,0.000248,2]
[349275741,1737094232853,-73577.25519584,0.000248,2]
[349275743,1737094232864,-33104.2208329,0.000248,2]
[349275745,1737094232873,-150.0,0.00024827,2]
[349275747,1737094232882,-300.0,0.00024841,2]
[349275749,1737094232891,-5800.0,0.00024849,2]
[349275751,1737094232900,-687.48428189,0.00024857,2]
[349275753,1737094232915,-5112.51571811,0.00024857,2]
[349275755,1737094232925,-5800.0,0.00024866,2]
[349275757,1737094232933,-3830.97966514,0.00024874,30]
[349275759,1737094232943,-3094.66195428,0.00024875,2]
[349275761,1737094232956,-1069.00829095,0.00024875,2]
[349275763,1737094232967,-1636.32975477,0.00024875,2]
[349275765,1737094232977,-200.1701846,0.00024875,2]
[349275767,1737094232986,-48.74007339,0.00024883,2]
[349275839,1737094238186,-5751.25992661,0.00024883,2]
[349275840,1737094238195,-150.0,0.00024885,2]
[349275841,1737094238206,-450.56283108,0.00024892,2]
[349275842,1737094238280,-5349.43716892,0.00024892,2]
[349275843,1737094238290,-5800.0,0.000249,2]
[349275844,1737094238299,-1000.0,0.000249,2]
[349275845,1737094238309,-445.0,0.000249,3]
[349275846,1737094238319,-1000.0,0.000249,3]
[349275847,1737094238328,-1000.0,0.000249,3]
[349275848,1737094238338,-217.86942022,0.000249,2]
[349275849,1737094238347,-202.0613477,0.000249,2]
[349275850,1737094238357,-172.433161,0.000249,2]
[349275851,1737094238366,-500.0,0.00024932,2]
[349275852,1737094238376,-12344.40911257,0.00024943,2]
[349275853,1737094238386,-980.77,0.0002496,2]
[349275854,1737094238395,-980.77,0.0002496,2]
[349275855,1737094238405,-980.77,0.0002496,2]
[349275856,1737094238415,-1815.23,0.0002496,2]
[349275857,1737094238424,-980.77,0.0002496,2]
[349275858,1737094238434,-980.77,0.0002496,2]
[349275859,1737094238443,-980.77,0.0002496,2]
[349275860,1737094238453,-980.77,0.0002496,2]
[349275861,1737094238462,-1868.72,0.0002496,2]
[349275862,1737094238472,-980.56,0.0002496,2]
[349275863,1737094238481,-980.77,0.0002496,2]
[349275864,1737094238490,-988.32,0.0002496,2]
[349275865,1737094238499,-159.95871211,0.00024973,2]
[349275866,1737094238509,-500.0,0.00024973,2]
[349275867,1737094238518,-500.0,0.00024973,2]
[349275868,1737094238527,-500.22208709,0.00024973,2]
[349275869,1737094238537,-23913.2530478,0.00024996,2]
[349275870,1737094238547,-183.46582188,0.00024999,2]
[349275871,1737094238556,-500.0,0.00024999,2]
[349275872,1737094238566,-4810488.46920322,0.00025,30]
[349275873,1737094238575,-538144.03529126,0.00025,30]
[349275874,1737094238587,-993.34986515,0.00025,30]
[349275875,1737094238599,-68990.13444203,0.00025,30]
[349275886,1737094238789,-76762.07456677,0.00025,30]
[349275887,1737094238801,-7768.0,0.00025,30]
[349275888,1737094238824,-311.184893,0.00025,30]
[349275889,1737094238836,-1149.9245398,0.00025,30]
[349275892,1737094240407,-3999.64712997,0.00025,30]
[349275893,1737094240419,-971.24257436,0.00025,30]
[349275894,1737094240432,-1095.6062822,0.00025,30]
[349275895,1737094240444,-1469.6911387,0.00025,30]
[349275896,1737094240460,-6517.68518914,0.00025,30]
[349275897,1737094240472,-866.84661632,0.00025,30]
[349275898,1737094240484,-307.71169007,0.00025,30]
[349275899,1737094240593,-6841.33816,0.00025,30]
[349275900,1737094240623,-372.80077324,0.00025,30]
[349275901,1737094240634,-240811.94517509,0.00025,30]
[349275902,1737094240732,-1661.75,0.00025,30]
[349275903,1737094240743,-3591.86537889,0.00025,30]
[349275958,1737094243571,-980.77,0.00024138,2]
[349275959,1737094243581,-150.0,0.00024979,2]
[349275960,1737094243590,-804.20204672,0.00025,30]
[349275961,1737094243601,-32564.95794958,0.00025,30]
[349275962,1737094243626,-16268.07293523,0.00025,30]
[349275963,1737094243681,-315968.29863253,0.00025,30]
[349275964,1737094243715,-308.54923586,0.00025,30]
[349275965,1737094243761,-325.42924206,0.00025,30]
[349275977,1737094246350,-101643.59151966,0.00025,30]
[349275978,1737094246362,-164817.99999528,0.00025,30]
[349275979,1737094246374,-5071.0,0.00025,30]
[349275980,1737094246385,-8022.0,0.00025,30]
[349275981,1737094246397,-9733.8571043,0.00025,30]
[349275982,1737094246409,-2969.34556236,0.00025,30]
[349275983,1737094246425,-856.20926424,0.00025,30]
[349275984,1737094246436,-7858.73569701,0.00025,30]
[349275985,1737094246447,-3622.53010337,0.00025,30]
[349275986,1737094246480,-1418.72135919,0.00025,30]
[349275987,1737094246493,-378.78294716,0.00025,30]
[349275988,1737094246504,-813.5,0.00025,30]
[349275989,1737094246606,-18465.97548838,0.00025,30]
[349275990,1737094246617,-2027.4,0.00025,30]
[349275991,1737094246629,-393801.7656383,0.00025,30]
[349275992,1737094246640,-3090.84799268,0.00025,30]
[349275993,1737094246652,-590.62047665,0.00025,30]
[349275994,1737094246663,-937.69234994,0.00025,30]
[349275998,1737094692555,176.64,0.00010137,2]
[349276001,1737095108203,7821.72,0.00012,2]
[349276002,1737095108252,1179949.91681163,0.00012,2]
[349276003,1737095155036,619.37080149,6.94e-05,2]
[349276004,1737095167207,6492.22087616,8e-05,2]
[349276005,1737095219189,-31008.0,0.0002,15]
[349276006,1737095236102,-1400.98735717,0.00014888,2]
[349276007,1737095236124,-113.72639401,0.00016813,2]
[349276008,1737095238242,-2088.64925131,0.0002,15]
[349276009,1737095281919,89777.81613653,0.0001,2]
[349276012,1737095315237,9573.17790833,0.00011,2]
[349276015,1737095325448,5221.90792869,8e-05,2]
[349276016,1737095325488,1000.0,9.132e-05,2]
[349276018,1737095346103,-62.91360599,0.00016813,2]
[349276019,1737095346125,-880.2871778,0.00018,3]
[349276020,1737095347143,-229.23113158,0.00018,3]
[349276021,1737095372102,-556.08463581,0.00018,3]
[349276022,1737095372124,-1353.06423981,0.0002,4]
[349276023,1737095372146,-422.91441634,0.00021867,2]
[349276037,1737095431525,-86.12558366,0.00021867,2]
[349276038,1737095431535,-176.64,0.0002349,2]
[349276039,1737095431545,-106.69441634,0.000237,2]
[349276040,1737095431565,-893.30558366,0.000237,2]
[349276041,1737095431575,-200.0,0.00023751,2]
[349276042,1737095431585,-96.06142034,0.00023752,2]
[349276043,1737095431665,-236.81857966,0.00023752,2]
[349276044,1737095431675,-213.83442034,0.00023762,2]
[349276045,1737095431686,-786.16557966,0.00023762,2]
[349276046,1737095431696,-337.16,0.00023763,2]
[349276047,1737095431706,-1817.87,0.00023764,2]
[349276048,1737095431715,-213.00705047,0.00023784,2]
[349276049,1737095431725,-250.0,0.00023793,2]
[349276050,1737095431735,-250.0,0.00023826,2]
[349276051,1737095431744,-891.98,0.0002388,120]
[349276052,1737095431754,-157.82509568,0.0002388,5]
[349276053,1737095431764,-1523.985,0.0002388,5]
[349276054,1737095431773,-300.0,0.00023892,2]
[349276055,1737095431782,-23900.0,0.00023893,2]
[349276056,1737095431792,-509.04,0.00024131,2]
[349276057,1737095431801,-298.9764879,0.000245,2]
[349276058,1737095431811,-2498.0,0.000245,2]
[349276059,1737095431821,-168.75,0.00024512,2]
[349276060,1737095431831,-3726.8062,0.00024557,2]
[349276061,1737095431840,-1199.21,0.00024657,14]
[349276062,1737095431849,-1199.21,0.00024657,14]
[349276063,1737095431858,-1199.21,0.00024657,14]
[349276064,1737095431867,-1199.21,0.00024657,14]
[349276065,1737095431877,-1199.21,0.00024657,14]
[349276066,1737095431887,-1199.21,0.00024657,14]
[349276067,1737095431896,-1199.21,0.00024657,14]
[349276068,1737095431907,-1199.21,0.00024657,14]
[349276069,1737095431917,-1199.21,0.00024657,14]
[349276070,1737095431926,-1199.21,0.00024657,14]
[349276071,1737095431936,-1199.21,0.00024657,14]
[349276072,1737095431946,-1199.21,0.00024657,14]
[349276073,1737095431955,-1199.21,0.00024657,14]
[349276074,1737095431966,-1199.21,0.00024657,14]
[349276075,1737095431976,-1199.21,0.00024657,14]
[349276076,1737095431986,-1199.21,0.00024657,14]
[349276077,1737095431995,-1199.21,0.00024657,14]
[349276078,1737095432005,-1199.21,0.00024657,14]
[349276079,1737095432016,-1199.21,0.00024657,14]
[349276080,1737095432025,-1199.21,0.00024657,14]
[349276081,1737095432036,-1199.21,0.00024657,14]
[349276082,1737095432045,-1199.21,0.00024657,14]
[349276083,1737095432055,-1199.21,0.00024657,14]
[349276084,1737095432065,-1199.42379461,0.00024657,14]
[349276085,1737095432075,-831.64533389,0.00024683,2]
[349276086,1737095432085,-300.0,0.000247,2]
[349276087,1737095432094,-150.0,0.00024709,2]
[349276088,1737095432103,-150.0,0.00024718,2]
[349276089,1737095432114,-150.0,0.00024722,2]
[349276090,1737095432123,-150.0,0.00024724,2]
[349276091,1737095432132,-150.0,0.00024737,2]
[349276092,1737095432141,-150.0,0.00024748,2]
[349276093,1737095432151,-914.91112,0.0002475,2]
[349276094,1737095432160,-1000.0,0.00024758,2]
[349276095,1737095432169,-1000.0,0.00024764,2]
[349276096,1737095432179,-150.0,0.00024765,2]
[349276097,1737095432188,-150.0,0.00024767,2]
[349276099,1737095432197,-150.0,0.00024769,2]
[349276101,1737095432206,-150.0,0.00024771,2]
[349276103,1737095432215,-150.0,0.00024773,2]
[349276105,1737095432225,-150.0,0.00024775,2]
[349276107,1737095432234,-150.0,0.00024777,2]
[349276108,1737095432243,-150.0,0.00024777,2]
[349276110,1737095432261,-150.0,0.00024778,2]
[349276112,1737095432273,-150.0,0.00024784,2]
[349276113,1737095432282,-150.0,0.00024786,2]
[349276114,1737095432293,-150.0,0.00024788,2]
[349276115,1737095432303,-150.0,0.00024792,2]
[349276116,1737095432313,-150.0,0.00024794,2]
[349276117,1737095432323,-150.0,0.00024795,2]
[349276118,1737095432335,-150.0,0.00024796,2]
[349276119,1737095432345,-150.0,0.00024798,2]
[349276120,1737095432355,-150.0,0.00024798,2]
[349276121,1737095432365,-500.0,0.000248,2]
[349276124,1737095432375,-150.0,0.00024803,2]
[349276128,1737095432385,-150.0,0.00024808,2]
[349276130,1737095432396,-150.0,0.0002481,2]
[349276132,1737095432405,-150.0,0.00024812,2]
[349276133,1737095432415,-150.0,0.00024815,2]
[349276135,1737095432425,-150.0,0.00024817,2]
[349276137,1737095432436,-150.0,0.00024826,2]
[349276139,1737095432452,-150.0,0.00024826,2]
[349276140,1737095432462,-150.0,0.00024828,2]
[349276142,1737095432471,-150.0,0.00024829,2]
[349276144,1737095432483,-150.0,0.0002483,2]
[349276146,1737095432492,-150.0,0.00024839,2]
[349276147,1737095432503,-1000.0,0.00024841,2]
[349276149,1737095432513,-150.0,0.00024852,2]
[349276150,1737095432523,-150.0,0.00024859,2]
[349276152,1737095432532,-1000.0,0.00024859,2]
[349276154,1737095432543,-150.0,0.00024862,2]
[349276155,1737095432552,-150.0,0.00024864,2]
[349276157,1737095432562,-150.0,0.00024867,2]
[349276159,1737095432572,-200.0,0.00024875,2]
[349276160,1737095432582,-150.0,0.00024876,2]
[349276162,1737095432592,-643.53763847,0.00024886,2]
[349276163,1737095432603,-150.0,0.00024892,2]
[349276164,1737095432613,-150.0,0.00024899,2]
[349276165,1737095432623,-11599.26405053,0.000249,2]
[349276166,1737095432637,-5022.83878383,0.000249,2]
[349276167,1737095432650,-1797.31796564,0.000249,2]
[349276168,1737095432661,-1000.0,0.000249,2]
[349276169,1737095432670,-500.0,0.000249,2]
[349276170,1737095432680,-559.4782,0.000249,2]
[349276171,1737095432690,-1000.0,0.000249,2]
[349276172,1737095432699,-2500.0,0.000249,2]
[349276173,1737095432710,-150.0,0.00024904,2]
[349276174,1737095432720,-150.0,0.00024905,2]
[349276175,1737095432729,-150.0,0.00024908,2]
[349276176,1737095432739,-150.0,0.00024915,2]
[349276177,1737095432749,-150.0,0.00024916,2]
[349276178,1737095432758,-150.0,0.00024925,2]
[349276179,1737095432768,-150.0,0.00024932,2]
[349276180,1737095432778,-150.0,0.00024932,2]
[349276181,1737095432789,-150.0,0.00024936,2]
[349276182,1737095432798,-150.0,0.00024939,2]
[349276183,1737095432808,-150.0,0.00024949,2]
[349276184,1737095432818,-150.0,0.0002495,2]
[349276185,1737095432828,-150.0,0.00024957,2]
[349276186,1737095432838,-463.0,0.00024959,2]
[349276187,1737095432848,-198.56797001,0.0002497,2]
[349276188,1737095432858,-150.0,0.00024973,2]
[349276189,1737095432868,-150.0,0.00024974,2]
[349276190,1737095432878,-150.0,0.00024975,2]
[349276191,1737095432888,-2002.65,0.0002498,2]
[349276192,1737095432898,-999.99,0.0002498,2]
[349276193,1737095432907,-150.99,0.0002498,2]
[349276194,1737095432916,-25433.78,0.0002498,2]
[349276195,1737095432925,-299.99,0.0002498,7]
[349276196,1737095432935,-3825.16,0.0002498,2]
[349276197,1737095432945,-9999.99,0.0002498,2]
[349276198,1737095432955,-150.0,0.00024982,2]
[349276199,1737095432964,-277.80079307,0.00024989,2]
[349276200,1737095432974,-183.46582188,0.00024999,2]
[349276201,1737095432983,-500.0,0.00024999,2]
[349276202,1737095432993,-206.0712853,0.00024999,2]
[349276203,1737095433003,-19045.84637005,0.00025,30]
[349276204,1737095433015,-10262.57128165,0.00025,30]
[349276205,1737095433027,-499.43396018,0.00025,30]
[349276207,1737095437446,-6384798.02618009,0.00025,30]
[349276208,1737095437458,-5845.74560316,0.00025,30]
[349276209,1737095437469,-3539.19414474,0.00025,30]
[349276210,1737095437481,-210092.47825659,0.00025,30]
[349276211,1737095437493,-11710.53549523,0.00025,30]
[349276212,1737095437505,-18292.05466676,0.00025,30]
[349276213,1737095437522,-313.076106,0.00025,30]
[349276214,1737095437590,-3574.0,0.00025,30]
[349276215,1737095437601,-974.80061012,0.00025,30]
[349276216,1737095437679,-451.15504761,0.00025,30]
[349276234,1737095437876,-328996.85468658,0.00025,30]
[349276237,1737095437892,-2943.84242347,0.00025,30]
[349276302,1737095439558,-4965.55,0.00025,30]
[349276303,1737095439570,-1535.59155827,0.00025,30]
[349276304,1737095439582,-8913.486954,0.00025,30]
[349276305,1737095439653,-4764.15905,0.00025,30]
[349276306,1737095439665,-2905.38,0.00025,30]
[349276307,1737095439677,-5887.61148404,0.00025,30]
[349276308,1737095439689,-24571.526139,0.00025,30]
[349276309,1737095439701,-19938.33428869,0.00025,30]
[349276310,1737095439712,-3250.01874056,0.00025,30]
[349276311,1737095439724,-1983.63196406,0.00025,30]
[349276312,1737095439759,-305.0000025,0.00025,30]
[349276313,1737095439817,-52973.17211075,0.00025,30]
[349276314,1737095439829,-11336.83571536,0.00025,30]
[349276315,1737095439844,-516.56031135,0.00025,30]
[349276316,1737095439871,-533.575,0.00025,30]
[349276317,1737095439964,-395.472,0.00025,30]
[349276318,1737095440053,-1705.95047647,0.00025,30]
[349276341,1737095442579,-1098.44735005,0.00025,30]
[349276342,1737095442590,-2187.3,0.00025,30]
[349276343,1737095442602,-2613.24932791,0.00025,30]
[349276344,1737095442617,-1711.87058023,0.00025,30]
[349276345,1737095442628,-744.79128,0.00025,30]
[349276346,1737095442640,-1357.82311461,0.00025,30]
[349276347,1737095442671,-4407.82847558,0.00025,30]
[349276348,1737095442683,-537.35,0.00025,30]
[349276349,1737095442694,-1450.31865778,0.00025,30]
[349276350,1737095442729,-846.0,0.00025,30]
[349276351,1737095442742,-495.58079881,0.00025,30]
[349276352,1737095445534,-1671.45,0.000248,2]
[349276353,1737095445546,-4212.9517128,0.00025,30]
[349276354,1737095445655,-163.17534024,0.00025,30]
[349276355,1737095445723,-731.53397464,0.00025,30]
[349276356,1737095445735,-345.27883011,0.00025,30]
[349276357,1737095445746,-4208.38,0.00025,30]
[349276358,1737095445811,-2028.8,0.00025,30]
[349276359,1737095445826,-16666.55555331,0.00025,30]
[349276360,1737095445839,-9514.47,0.00025,30]
[349276361,1737095445903,-2912.62417849,0.00025,30]
[349276362,1737095445943,-576.70999178,0.00025,30]
[349276363,1737095445954,-1104.89183922,0.00025,30]
[349276364,1737095445965,-7519.56694628,0.00025,30]
[349276365,1737095445976,-841.56829395,0.00025,30]
[349276388,1737095905331,156.23,0.00010137,2]
[349276391,1737096340269,-500.0,0.00024999,30]
[349276392,1737096340291,-500.0,0.00024999,30]
[349276393,1737096340312,-500.0,0.00024999,30]
[349276394,1737096340334,-500.0,0.00024999,30]
[349276395,1737096340356,-500.0,0.00024999,30]
[349276396,1737096340377,-500.0,0.00024999,30]
[349276397,1737096340397,-500.0,0.00024999,30]
[349276398,1737096340567,-500.0,0.00024999,30]
[349276399,1737096340589,-500.0,0.00024999,30]
[349276400,1737096340609,-500.0,0.00024999,30]
[349276401,1737096340630,-500.0,0.00024999,30]
[349276402,1737096340651,-500.0,0.00024999,30]
[349276403,1737096340673,-500.0,0.00024999,30]
[349276404,1737096340736,-393500.0,0.00025,30]
[349276405,1737096434139,-159.15,0.00020406,2]
[349276406,1737096434162,-560.15,0.00021831,2]
[349276407,1737096434183,-648.44349886,0.000235,2]
[349276408,1737096437097,-1798.62547114,0.000235,2]
[349276409,1737096437121,-2323.7648502,0.00023517,2]
[349276410,1737096437144,-216.4348769,0.00023617,2]
[349276411,1737096437165,-200.0,0.00023724,2]
[349276412,1737096437188,-880.48,0.00023749,2]
[349276413,1737096437208,-906.91791771,0.0002377,3]
[349276414,1737096437230,-9462.61414931,0.00023803,2]
[349276428,1737096631766,-967.9916067,0.00023684,2]
[349276429,1737096631779,-1729.84,0.00023726,2]
[349276430,1737096631793,-250.0,0.00023784,2]
[349276431,1737096631806,-300.0,0.00023802,2]
[349276432,1737096631822,-10520.10585069,0.00023803,2]
[349276433,1737096631835,-1000.0,0.00023817,2]
[349276434,1737096631848,-560.15,0.00024095,2]
[349276435,1737096631863,-1508.08254263,0.000241,8]
[349276436,1737096631968,-191.91745737,0.000241,8]
[349276437,1737096631981,-3400.0,0.000242,8]
[349276438,1737096631994,-5100.0,0.000243,8]
[349276439,1737096632008,-3862.78,0.000243,2]
[349276440,1737096632022,-168.58,0.00024373,2]
[349276441,1737096632035,-6800.0,0.000244,8]
[349276442,1737096632049,-350.0,0.00024499,2]
[349276443,1737096632062,-298.9764879,0.000245,2]
[349276444,1737096632075,-20000.0,0.000245,5]
[349276445,1737096632088,-8500.0,0.000245,8]
[349276446,1737096632102,-2076.0,0.00024501,2]
[349276447,1737096632116,-250.0,0.00024557,2]
[349276448,1737096632129,-1700.0,0.000246,8]
[349276449,1737096632141,-1000.0,0.00024657,14]
[349276450,1737096632155,-1000.0,0.00024657,14]
[349276451,1737096632168,-1000.0,0.00024657,14]
[349276452,1737096632181,-1000.0,0.00024657,14]
[349276453,1737096632194,-1000.0,0.00024657,14]
[349276454,1737096632207,-1000.0,0.00024657,14]
[349276455,1737096632220,-1000.0,0.00024657,14]
[349276457,1737096632232,-1000.0,0.00024657,14]
[349276459,1737096632245,-970.62,0.00024657,14]
[349276461,1737096632257,-1000.0,0.00024658,2]
[349276463,1737096632271,-109517.0673,0.000247,2]
[349276464,1737096632284,-1700.0,0.000247,9]
[349276465,1737096632297,-250.0,0.00024747,2]
[349276466,1737096632310,-1541.50758,0.0002475,2]
[349276467,1737096632323,-500.0,0.00024799,2]
[349276468,1737096632336,-503.81658871,0.00024799,2]
[349276469,1737096632349,-502.75653172,0.00024799,2]
[349276470,1737096632361,-500.0,0.00024799,2]
[349276471,1737096632375,-500.0,0.00024799,2]
[349276472,1737096632390,-500.0,0.00024799,2]
[349276473,1737096632403,-500.0,0.00024799,2]
[349276474,1737096632417,-183.95555617,0.00024799,2]
[349276475,1737096632431,-480.33109551,0.00024799,2]
[349276476,1737096632441,-2500.0,0.000248,2]
[349276477,1737096632451,-16591.196,0.000248,2]
[349276478,1737096632461,-58994.46902931,0.000248,2]
[349276479,1737096632470,-1700.0,0.000248,9]
[349276480,1737096632480,-2500.0,0.000248,2]
[349276481,1737096632489,-7246.0431,0.00024859,2]
[349276482,1737096632705,-1823.3901,0.00024859,2]
[349276483,1737096632731,-5649.5206,0.00024859,2]
[349276484,1737096632740,-498.33596982,0.00024859,2]
[349276485,1737096632751,-498.33596979,0.00024863,2]
[349276486,1737096632761,-498.33596979,0.00024868,2]
[349276487,1737096632770,-498.33596979,0.00024872,2]
[349276488,1737096632780,-498.33596979,0.00024877,2]
[349276489,1737096632790,-498.33596979,0.00024881,2]
[349276490,1737096632799,-498.33596979,0.00024886,2]
[349276491,1737096632811,-498.33596979,0.0002489,2]
[349276492,1737096632826,-498.33596979,0.00024895,2]
[349276493,1737096632835,-1286.246,0.00024898,2]
[349276494,1737096632845,-450.3679,0.00024899,2]
[349276495,1737096632854,-220.0,0.00024899,2]
[349276496,1737096632866,-325.04075584,0.00024899,2]
[349276497,1737096632875,-605.80229058,0.00024899,2]
[349276498,1737096632884,-3721.1266735,0.00024899,2]
[349276499,1737096632896,-697.12088676,0.00024899,2]
[349276500,1737096632905,-498.33596979,0.00024899,2]
[349276501,1737096632915,-605.80229055,0.00024899,2]
[349276502,1737096632924,-605.80229055,0.00024899,2]
[349276503,1737096632933,-605.80229055,0.00024899,2]
[349276504,1737096632943,-325.04075583,0.00024899,2]
[349276505,1737096632952,-605.80229055,0.00024899,2]
[349276506,1737096632962,-605.80229055,0.00024899,2]
[349276507,1737096632971,-605.80229055,0.00024899,2]
[349276508,1737096632981,-325.04075583,0.000249,2]
[349276509,1737096632991,-605.80229055,0.000249,2]
[349276510,1737096633002,-3721.12667348,0.000249,2]
[349276511,1737096633012,-697.12088675,0.000249,2]
[349276512,1737096633022,-605.80229055,0.000249,2]
[349276513,1737096633031,-605.80229055,0.000249,2]
[349276514,1737096633042,-605.80229055,0.000249,2]
[349276515,1737096633051,-325.04075583,0.000249,2]
[349276516,1737096633060,-605.80229055,0.000249,2]
[349276517,1737096633070,-605.80229055,0.000249,2]
[349276518,1737096633080,-605.80229055,0.000249,2]
[349276519,1737096633091,-619.265,0.000249,2]
[349276520,1737096633101,-500.0,0.000249,2]
[349276521,1737096633111,-160.13,0.000249,2]
[349276522,1737096633121,-1660.9207,0.000249,2]
[349276523,1737096633131,-7300.8301,0.000249,2]
[349276524,1737096633141,-757.51778657,0.000249,2]
[349276525,1737096633151,-325.04075583,0.000249,2]
[349276526,1737096633160,-1700.0,0.000249,9]
[349276527,1737096633170,-4712.909359,0.000249,2]
[349276528,1737096633180,-3721.12667348,0.000249,2]
[349276529,1737096633190,-605.80229055,0.000249,2]
[349276530,1737096633199,-697.12088675,0.000249,2]
[349276531,1737096633209,-150.011715,0.00024918,11]
[349276532,1737096633218,-150.011715,0.00024928,11]
[349276533,1737096633227,-150.011715,0.00024938,12]
[349276534,1737096633238,-150.011715,0.00024948,12]
[349276535,1737096633253,-150.011715,0.00024958,13]
[349276536,1737096633271,-23601.0,0.00024959,2]